bitfinex-derivatives/quotes_SOLF0:USTF0_20220110
["timestamp","ask_amount","ask_price","bid_price","bid_amount"]
[1641797031029,3.97005482,142.69,142.66,27.66479]
[1641797032228,3.97005482,142.69,142.64,27.66479]
[1641797032930,3.97005482,142.71,142.65,1.16645727]
[1641797033731,2.53988762,142.7,142.65,1.16645727]
[1641797034232,3.97005482,142.69,142.65,1.16645727]
[1641797035833,3.97005482,142.71,142.65,1.16645727]
[1641797036433,2.5405651,142.7,142.65,1.16645727]
[1641797036633,9.8255651,142.7,142.65,1.16645727]
[1641797036935,3.97005482,142.69,142.65,1.16645727]
[1641797039839,3.97005482,142.71,142.65,1.16645727]
[1641797040941,2.54110921,142.7,142.64,1.16645727]
[1641797041241,3.97005482,142.69,142.64,1.16645727]
[1641797041441,3.97005482,142.69,142.65,30.07039952]
[1641797042042,3.97005482,142.69,142.65,27.66479]
[1641797042244,3.97005482,142.69,142.66,1.16645727]
[1641797042643,3.97005482,142.71,142.66,1.16645727]
[1641797043541,2.54124413,142.7,142.66,1.16645727]
[1641797043742,9.39424413,142.7,142.66,1.16645727]
[1641797043942,3.97005482,142.69,142.65,27.66479]
[1641797044342,6.51129895,142.69,142.65,27.66479]
[1641797044843,3.97005482,142.68,142.65,27.66479]
[1641797045041,6.51129895,142.68,142.65,27.66479]
[1641797045443,6.51129895,142.68,142.63,60.39679]
[1641797045742,3.97005482,142.67,142.63,60.39679]
[1641797045943,9.92605482,142.67,142.63,60.39679]
[1641797046145,5.956,142.67,142.64,1.16682149]
[1641797046343,5.956,142.67,142.64,3.57854404]
[1641797046743,3.97005482,142.66,142.64,3.57854404]
[1641797047143,3.97005482,142.66,142.65,1.16682149]
[1641797047345,3.97005482,142.66,142.65,3.57854404]
[1641797047545,3.97005482,142.68,142.65,3.57854404]
[1641797047944,3.97005482,142.69,142.66,1.16682149]
[1641797048644,2.54724914,142.68,142.66,1.16682149]
[1641797049245,3.97005482,142.67,142.64,1.16682149]
[1641797050048,3.97005482,142.67,142.65,2.41167872]
[1641797050448,3.97005482,142.67,142.66,1.16682149]
[1641797050648,3.97005482,142.69,142.66,1.16682149]
[1641797051447,3.97005482,142.7,142.66,1.16682149]
[1641797051646,2.54757941,142.68,142.66,1.16682149]
[1641797051847,11.23257941,142.68,142.63,14.84715583]
[1641797052046,15.23257941,142.68,142.63,14.84715583]
[1641797052548,4.0,142.67,142.63,14.84715583]
[1641797053047,21.39473524,142.67,142.61,2.41215987]
[1641797053250,3.97092123,142.66,142.61,36.91665987]
[1641797053447,31.63571123,142.66,142.61,36.91665987]
[1641797053647,31.63571123,142.66,142.62,1.15561395]
[1641797054048,3.97092123,142.65,142.62,3.56777382]
[1641797054548,3.97092123,142.65,142.63,1.15561395]
[1641797054948,3.97092123,142.67,142.63,3.56777382]
[1641797055447,3.97092123,142.67,142.64,1.15561395]
[1641797055648,2.54490326,142.66,142.64,1.15561395]
[1641797056550,3.97092123,142.65,142.62,1.15561395]
[1641797056850,3.97092123,142.65,142.61,36.2565]
[1641797057248,3.97092123,142.65,142.63,2.40867512]
[1641797057750,3.97092123,142.69,142.64,27.66479]
[1641797058950,3.97092123,142.69,142.65,2.40867512]
[1641797062555,14.98084027,142.69,142.65,2.40867512]
[1641797062957,3.97092123,142.68,142.65,2.40867512]
[1641797063155,13.24192123,142.68,142.65,2.40867512]
[1641797063356,19.78674139,142.68,142.62,2.40867512]
[1641797063755,3.97092123,142.67,142.62,2.40867512]
[1641797064156,6.51574139,142.67,142.62,2.40867512]
[1641797064556,3.97092123,142.66,142.62,2.40867512]
[1641797064955,6.51574139,142.66,142.61,2.40867512]
[1641797065459,3.97092123,142.65,142.61,2.40867512]
[1641797066358,32.8051,142.67,142.61,2.40867512]
[1641797066359,3.97092123,142.66,142.61,2.40867512]
[1641797072264,3.97092123,142.66,142.62,0.92214959]
[1641797073568,3.97092123,142.66,142.61,0.92214959]
[1641797074469,3.97092123,142.66,142.62,2.40815277]
[1641797074866,3.97092123,142.66,142.63,0.92214959]
[1641797077470,3.97092123,142.66,142.62,0.92214959]
[1641797079375,3.97092123,142.66,142.62,28.58693959]
[1641797080077,3.97092123,142.66,142.63,0.92214959]
[1641797081279,3.97092123,142.66,142.62,0.92214959]
[1641797089594,2.54604414,142.65,142.62,0.92214959]
[1641797090193,3.97092123,142.64,142.62,0.92214959]
[1641797091494,3.97092123,142.66,142.62,0.92214959]
[1641797091894,3.97092123,142.66,142.63,2.41250073]
[1641797092593,2.54835244,142.65,142.63,2.41250073]
[1641797093296,3.97092123,142.64,142.62,2.41250073]
[1641797093697,3.97092123,142.64,142.63,0.9222224]
[1641797094096,3.97092123,142.66,142.63,0.9222224]
[1641797094497,3.97092123,142.66,142.63,3.33472313]
[1641797094897,3.97092123,142.66,142.63,2.41250073]
[1641797095396,2.54840672,142.65,142.61,35.2081]
[1641797095797,3.97092123,142.64,142.62,0.92222832]
[1641797096096,3.97092123,142.64,142.62,3.33482073]
[1641797096597,3.97092123,142.64,142.63,0.92222832]
[1641797096797,3.97092123,142.64,142.63,3.33482073]
[1641797097097,3.97092123,142.66,142.63,3.33482073]
[1641797097497,3.97092123,142.66,142.63,2.41259241]
[1641797098097,2.54846701,142.65,142.62,2.41259241]
[1641797098798,3.97092123,142.64,142.63,0.92229958]
[1641797099396,3.97092123,142.64,142.62,0.92229958]
[1641797099598,3.97092123,142.64,142.63,2.41259241]
[1641797100199,2.54827266,142.64,142.63,3.33489199]
[1641797100599,6.51919389,142.64,142.63,3.33489199]
[1641797100801,3.97092123,142.64,142.63,3.33489199]
[1641797101500,3.97092123,142.65,142.63,3.33489199]
[1641797101700,2.5483328,142.64,142.63,3.33489199]
[1641797101900,2.5483328,142.64,142.63,2.41259241]
[1641797102401,15.62425403,142.64,142.63,3.33490818]
[1641797103002,15.62425403,142.64,142.63,0.92231577]
[1641797103501,15.62425403,142.64,142.61,0.92231577]
[1641797103701,15.62425403,142.64,142.63,2.41259241]
[1641797104101,21.26197895,142.64,142.61,0.92231577]
[1641797104301,4.0,142.63,142.61,0.92231577]
[1641797104802,4.0,142.63,142.6,14.84715583]
[1641797105004,4.0,142.63,142.58,14.84715583]
[1641797105203,49.29727895,142.64,142.58,14.84715583]
[1641797105805,49.29727895,142.64,142.59,0.92288027]
[1641797106206,65.59610198,142.64,142.59,0.92288027]
[1641797106505,61.59610198,142.64,142.58,0.92288027]
[1641797107106,46.74894615,142.64,142.58,0.92288027]
[1641797107608,50.74894615,142.64,142.58,0.92288027]
[1641797108007,46.74894615,142.64,142.58,0.92288027]
[1641797109008,50.74894615,142.64,142.58,0.92288027]
[1641797109409,46.74894615,142.64,142.58,0.92288027]
[1641797110009,27.66479,142.63,142.58,0.92288027]
[1641797110214,32.0353,142.64,142.58,0.92288027]
[1641797112013,59.70009,142.64,142.58,0.92288027]
[1641797113814,4.0,142.63,142.58,0.92288027]
[1641797114215,4.0,142.62,142.58,0.92288027]
[1641797115219,92.86595044,142.64,142.58,0.92288027]
[1641797116217,84.15595044,142.64,142.58,0.92288027]
[1641797117020,56.49116044,142.64,142.58,0.92288027]
[1641797117421,52.49116044,142.64,142.58,0.92288027]
[1641797117620,56.49116044,142.64,142.58,0.92288027]
[1641797118023,27.66479,142.62,142.58,0.92288027]
[1641797118521,4.0,142.59,142.58,0.92288027]
[1641797118820,33.27425894,142.62,142.54,14.84715583]
[1641797118821,14.55224136,142.6,142.54,14.84715583]
[1641797119219,8.942,142.6,142.54,14.84715583]
[1641797119823,8.942,142.6,142.53,46.86495583]
[1641797120023,3.97211804,142.59,142.55,0.79442361]
[1641797120423,3.97211804,142.59,142.54,0.79442361]
[1641797120625,3.97211804,142.6,142.54,25.36075404]
[1641797120823,3.97211804,142.58,142.54,25.36075404]
[1641797121323,3.97211804,142.6,142.55,0.79442361]
[1641797121523,3.97211804,142.6,142.55,6.61142361]
[1641797121723,3.97211804,142.6,142.55,5.817]
[1641797121923,3.97211804,142.6,142.55,9.817]
[1641797122123,3.97211804,142.6,142.56,0.79442361]
[1641797123825,3.97211804,142.6,142.54,25.3575113]
[1641797124225,3.97211804,142.6,142.55,0.79442361]
[1641797126630,3.97211804,142.6,142.55,15.64157944]
[1641797127431,5.61098346,142.58,142.56,0.79442361]
[1641797127634,4.0,142.57,142.51,39.41065859]
[1641797127831,5.61187064,142.56,142.51,39.41065859]
[1641797128032,4.0,142.54,142.51,39.41065859]
[1641797128233,8.382,142.54,142.51,39.41065859]
[1641797128832,8.382,142.54,142.47,90.14737154]
[1641797128833,8.382,142.54,142.47,31.66479]
[1641797129034,8.382,142.54,142.52,0.79459184]
[1641797129433,8.382,142.54,142.48,0.79459184]
[1641797130436,8.382,142.54,142.5,4.0]
[1641797130936,8.382,142.54,142.51,0.79459184]
[1641797131738,8.382,142.54,142.49,0.79459184]
[1641797132938,8.382,142.54,142.48,0.79459184]
[1641797133340,87.8372801,142.58,142.48,0.79459184]
[1641797133841,3.97281958,142.57,142.48,0.79459184]
[1641797140856,3.97281958,142.57,142.49,27.66479]
[1641797141056,3.97281958,142.57,142.5,34.6073]
[1641797141459,3.97281958,142.57,142.51,0.79459184]
[1641797143356,31.63760958,142.57,142.51,0.79459184]
[1641797144058,3.97281958,142.56,142.51,0.79459184]
[1641797144457,3.97281958,142.56,142.52,2.40426346]
[1641797144859,3.97281958,142.57,142.53,0.79459184]
[1641797145459,31.63760958,142.57,142.53,0.79459184]
[1641797146061,3.97281958,142.56,142.51,0.79459184]
[1641797146962,3.97281958,142.57,142.51,0.79459184]
[1641797147163,3.97281958,142.57,142.52,2.40482312]
[1641797147363,31.63760958,142.57,142.52,2.40482312]
[1641797147763,3.97281958,142.56,142.53,0.79459184]
[1641797149166,3.97281958,142.56,142.51,0.79459184]
[1641797149965,3.97281958,142.56,142.52,2.40546003]
[1641797150467,3.97281958,142.57,142.53,0.79459184]
[1641797150967,3.97281958,142.55,142.53,0.79459184]
[1641797151165,3.97281958,142.56,142.53,0.79459184]
[1641797151668,31.63760958,142.57,142.51,0.79459184]
[1641797151966,3.97281958,142.57,142.51,0.79459184]
[1641797152267,3.97281958,142.56,142.51,0.79459184]
[1641797152969,3.97281958,142.57,142.51,0.79459184]
[1641797153169,3.97281958,142.57,142.52,2.40672174]
[1641797153569,31.63760958,142.57,142.52,2.40672174]
[1641797153769,31.63760958,142.57,142.53,0.79459184]
[1641797154270,3.97281958,142.56,142.53,0.79459184]
[1641797154471,12.06881958,142.56,142.54,2.40672174]
[1641797155071,8.096,142.56,142.55,0.79459184]
[1641797156272,8.096,142.56,142.51,0.79459184]
[1641797156974,10.6473297,142.56,142.55,2.41210358]
[1641797157471,10.6473297,142.56,142.52,2.41210358]
[1641797157673,10.6473297,142.56,142.55,0.79459184]
[1641797158072,10.6473297,142.56,142.53,0.79459184]
[1641797158273,8.096,142.56,142.53,0.79459184]
[1641797158973,8.096,142.56,142.54,2.41210358]
[1641797159273,8.096,142.56,142.55,0.79459184]
[1641797159475,27.66479,142.57,142.55,0.79459184]
[1641797159772,33.27640502,142.57,142.55,0.79459184]
[1641797160274,2.55134136,142.56,142.55,0.79459184]
[1641797160674,2.55134136,142.56,142.52,0.79459184]
[1641797160974,2.55134136,142.56,142.55,2.41216068]
[1641797161476,2.55134136,142.56,142.55,3.20675252]
[1641797161677,2.55134136,142.56,142.55,0.79459184]
[1641797162280,2.55134136,142.56,142.55,3.20675252]
[1641797162477,2.55134136,142.56,142.55,2.41216068]
[1641797162878,2.55134136,142.56,142.55,3.20675252]
[1641797164481,2.55134136,142.56,142.55,0.79459184]
[1641797164978,2.55134136,142.56,142.52,9.05359184]
[1641797165184,62.58229,142.58,142.55,2.41188091]
[1641797165380,27.66479,142.58,142.55,2.41188091]
[1641797165579,12.62446835,142.6,142.56,0.79459184]
[1641797165780,12.62446835,142.6,142.56,8.41159184]
[1641797166384,12.62446835,142.6,142.57,0.79459184]
[1641797166580,7.01434433,142.6,142.57,0.79459184]
[1641797167179,2.54875852,142.59,142.55,0.79459184]
[1641797167980,2.54875852,142.59,142.56,2.40969152]
[1641797168478,2.54875852,142.59,142.57,0.79459184]
[1641797169480,7.01434433,142.6,142.56,0.79459184]
[1641797169882,7.01434433,142.6,142.53,57.883719]
[1641797170081,7.01434433,142.6,142.57,2.40936585]
[1641797170379,62.00999,142.61,142.57,2.40936585]
[1641797170380,3.9722615,142.59,142.57,2.40936585]
[1641797170580,3.9722615,142.59,142.58,0.7944523]
[1641797171080,3.9722615,142.6,142.58,0.7944523]
[1641797171480,3.9722615,142.6,142.57,0.7944523]
[1641797172583,3.9722615,142.61,142.58,2.40794512]
[1641797173080,3.9722615,142.61,142.59,0.7944523]
[1641797174483,3.9722615,142.61,142.57,0.7944523]
[1641797182096,3.9722615,142.62,142.57,0.7944523]
[1641797184498,3.9722615,142.62,142.57,7.1474523]
[1641797185103,3.9722615,142.62,142.57,11.1474523]
[1641797185304,3.9722615,142.64,142.58,0.7944523]
[1641797185504,3.9722615,142.64,142.59,4.0]
[1641797186105,3.9722615,142.66,142.61,27.66479]
[1641797186307,3.9722615,142.66,142.61,36.09379]
[1641797186507,3.9722615,142.66,142.62,0.7944523]
[1641797186908,37.9949615,142.68,142.62,0.7944523]
[1641797187408,3.9722615,142.67,142.62,0.7944523]
[1641797187609,6.51274163,142.67,142.62,0.7944523]
[1641797188309,3.9722615,142.67,142.62,0.7944523]
[1641797188610,3.9722615,142.66,142.62,0.7944523]
[1641797189210,3.9722615,142.67,142.62,0.7944523]
[1641797195116,3.9722615,142.67,142.6,0.7944523]
[1641797195316,3.9722615,142.67,142.62,27.66479]
[1641797195917,3.9722615,142.67,142.63,0.7944523]
[1641797196519,34.0227,142.68,142.62,27.66479]
[1641797197018,3.97063157,142.67,142.63,0.79412631]
[1641797199522,3.97063157,142.67,142.6,0.79412631]
[1641797199720,3.97063157,142.67,142.61,27.66479]
[1641797200523,3.97063157,142.67,142.62,0.79412631]
[1641797200720,9.57827343,142.67,142.62,0.79412631]
[1641797201322,2.5424904,142.66,142.62,0.79412631]
[1641797201523,6.51312197,142.66,142.6,0.79412631]
[1641797201725,5.60833858,142.65,142.6,0.79412631]
[1641797201923,18.79697015,142.65,142.61,2.40377661]
[1641797202326,3.97063157,142.64,142.62,0.79412631]
[1641797202723,3.97063157,142.64,142.59,60.30959]
[1641797203426,3.97063157,142.64,142.6,0.79425986]
[1641797210734,2.54472214,142.63,142.6,0.79425986]
[1641797211537,3.97063157,142.62,142.6,0.79425986]
[1641797212337,3.97063157,142.62,142.6,28.45904986]
[1641797212736,14.890319,142.66,142.6,28.45904986]
[1641797212936,14.890319,142.66,142.61,4.79425986]
[1641797213237,39.41065859,142.69,142.63,4.0]
[1641797213436,14.85105924,142.69,142.64,5.752]
[1641797213636,14.85105924,142.69,142.65,4.0]
[1641797213835,14.85105924,142.69,142.66,4.0]
[1641797214036,14.85105924,142.69,142.67,4.0]
[1641797214236,39.41065859,142.72,142.68,55.32958]
[1641797214638,62.72978775,142.77,142.68,55.32958]
[1641797214639,34.7019,142.77,142.68,55.32958]
[1641797214838,38.7019,142.77,142.69,1.39373862]
[1641797215037,34.7019,142.77,142.69,1.39373862]
[1641797215740,2.53997198,142.76,142.69,1.39373862]
[1641797216339,2.53997198,142.76,142.71,27.66479]
[1641797219845,34.7019,142.77,142.68,27.66479]
[1641797220045,7.00672646,142.75,142.68,27.66479]
[1641797220244,11.00672646,142.75,142.69,1.3937582]
[1641797220445,27.66479,142.74,142.69,1.3937582]
[1641797220648,34.19762261,142.74,142.69,1.3937582]
[1641797221148,30.19762261,142.74,142.67,1.3937582]
[1641797222450,27.66479,142.74,142.67,29.0585482]
[1641797222849,27.66479,142.74,142.68,1.3937582]
[1641797223051,27.66479,142.74,142.68,7.2197582]
[1641797223651,27.66479,142.74,142.68,5.826]
[1641797226558,16.61116104,142.75,142.68,5.826]
[1641797227159,27.66479,142.73,142.68,5.826]
[1641797228258,27.66479,142.73,142.65,31.66479]
[1641797228660,27.66479,142.73,142.67,1.39409921]
[1641797228861,27.66479,142.73,142.67,10.55309921]
[1641797229459,27.66479,142.73,142.68,1.39409921]
[1641797229760,3.96949803,142.72,142.68,1.39409921]
[1641797230360,3.96949803,142.74,142.68,1.39409921]
[1641797235365,3.96949803,142.74,142.68,29.05888921]
[1641797236166,3.96949803,142.74,142.69,1.39409921]
[1641797237468,3.96949803,142.74,142.71,27.66479]
[1641797237667,3.96949803,142.74,142.71,35.52279]
[1641797238168,3.96949803,142.74,142.72,1.39409921]
[1641797238568,3.96949803,142.74,142.71,27.66479]
[1641797240778,3.96949803,142.74,142.72,1.39360674]
[1641797242278,3.96949803,142.74,142.68,4.0]
[1641797242478,3.96949803,142.74,142.7,8.908]
[1641797243078,18.3562142,142.78,142.71,1.39333955]
[1641797243280,18.3562142,142.78,142.71,41.00311231]
[1641797243479,3.96949803,142.78,142.74,27.66479]
[1641797243680,3.96949803,142.78,142.74,33.67579]
[1641797243880,3.96949803,142.8,142.75,1.39333955]
[1641797245081,2.54054155,142.79,142.75,1.39333955]
[1641797245280,7.00549932,142.78,142.75,1.39333955]
[1641797245482,34.67028932,142.78,142.75,1.39333955]
[1641797245780,6.51003958,142.77,142.69,60.28669]
[1641797246183,3.96949803,142.76,142.7,1.39345927]
[1641797246783,6.51003958,142.76,142.7,3.79762713]
[1641797247384,3.96949803,142.76,142.71,2.40416786]
[1641797247584,3.96949803,142.75,142.71,3.79762713]
[1641797247985,13.11949803,142.76,142.72,1.39345927]
[1641797248385,3.96949803,142.75,142.72,1.39345927]
[1641797248785,3.96949803,142.75,142.7,1.39345927]
[1641797249489,3.96949803,142.76,142.7,1.39345927]
[1641797251493,2.53850572,142.75,142.7,1.39345927]
[1641797251692,11.06550572,142.75,142.7,1.39345927]
[1641797251991,3.96949803,142.74,142.7,1.39345927]
[1641797252289,6.50800375,142.74,142.7,1.39345927]
[1641797252790,3.96949803,142.73,142.7,1.39345927]
[1641797254193,3.96949803,142.74,142.7,1.39345927]
[1641797254595,3.96949803,142.76,142.7,1.39345927]
[1641797255595,2.53988022,142.75,142.7,1.39345927]
[1641797256295,3.96949803,142.74,142.7,1.39345927]
[1641797257494,3.96949803,142.75,142.7,1.39345927]
[1641797258397,2.54075898,142.74,142.7,1.39345927]
[1641797258697,3.96949803,142.73,142.7,1.39345927]
[1641797260400,3.96949803,142.75,142.7,1.39345927]
[1641797261302,3.96949803,142.75,142.7,8.73845927]
[1641797261701,2.54296435,142.74,142.73,27.66479]
[1641797261901,2.54296435,142.74,142.73,34.05279]
[1641797262302,6.51246238,142.74,142.73,35.44624927]
[1641797262505,3.96949803,142.74,142.73,35.44624927]
[1641797262802,3.96949803,142.74,142.73,37.85348071]
[1641797263201,14.83765128,142.79,142.73,37.85348071]
[1641797263202,3.96949803,142.78,142.73,37.85348071]
[1641797263602,18.80714931,142.78,142.73,34.05279]
[1641797264002,3.96949803,142.77,142.74,1.39301241]
[1641797264804,6.51191209,142.77,142.74,1.39301241]
[1641797265506,3.96949803,142.76,142.74,1.39301241]
[1641797266105,3.96949803,142.78,142.74,1.39301241]
[1641797266907,2.54198948,142.77,142.74,1.39301241]
[1641797267106,9.5479796,142.77,142.74,1.39301241]
[1641797267305,2.54198948,142.77,142.74,1.39301241]
[1641797267505,6.51148751,142.76,142.7,1.39301241]
[1641797267906,3.96949803,142.75,142.7,1.39301241]
[1641797268106,3.96949803,142.75,142.7,5.39301241]
[1641797268406,6.51148751,142.75,142.71,2.40673328]
[1641797268606,6.51148751,142.75,142.71,11.26573328]
[1641797268806,6.51148751,142.75,142.71,12.65874569]
[1641797269008,3.96949803,142.75,142.71,10.25201241]
[1641797269208,3.96949803,142.74,142.72,1.39301241]
[1641797269407,11.71849803,142.74,142.72,1.39301241]
[1641797269706,3.96949803,142.73,142.7,1.39301241]
[1641797270509,3.96949803,142.73,142.71,2.40685173]
[1641797271008,3.96949803,142.73,142.72,1.39301241]
[1641797272011,3.96949803,142.75,142.72,1.39301241]
[1641797272409,3.96949803,142.75,142.7,1.39301241]
[1641797273411,3.96949803,142.75,142.71,2.40688552]
[1641797273911,2.54218732,142.74,142.7,1.39301241]
[1641797274111,2.54218732,142.74,142.72,1.39301241]
[1641797274511,3.96949803,142.73,142.7,1.39301241]
[1641797275917,3.96949803,142.75,142.7,1.39301241]
[1641797276118,3.96949803,142.75,142.71,2.4075094]
[1641797276719,3.96949803,142.75,142.72,1.39301241]
[1641797277221,2.54284562,142.74,142.7,1.39301241]
[1641797277620,3.96949803,142.73,142.7,1.39301241]
[1641797278422,3.96949803,142.73,142.71,2.40755743]
[1641797279024,3.96949803,142.75,142.72,1.39301241]
[1641797279924,2.54299637,142.74,142.72,29.05780241]
[1641797280321,3.96949803,142.73,142.69,36.6219]
[1641797280724,3.96949803,142.73,142.7,1.39346679]
[1641797281023,3.96949803,142.73,142.7,3.8010493]
[1641797281625,3.96949803,142.75,142.71,1.39346679]
[1641797282025,3.96949803,142.75,142.72,27.66479]
[1641797282826,2.54288396,142.74,142.72,27.66479]
[1641797283026,10.20088396,142.74,142.72,27.66479]
[1641797283331,3.96949803,142.73,142.72,27.66479]
[1641797283729,3.96949803,142.73,142.72,29.05821977]
[1641797284530,3.96949803,142.75,142.72,29.05821977]
[1641797284730,3.96949803,142.75,142.72,1.39342977]
[1641797285131,3.96949803,142.75,142.69,32.6219]
[1641797285532,3.96949803,142.75,142.7,1.39339749]
[1641797285731,3.96949803,142.75,142.7,3.80155101]
[1641797286133,3.96949803,142.75,142.71,1.39339749]
[1641797286334,3.96949803,142.75,142.71,3.80155101]
[1641797286835,3.96949803,142.75,142.72,29.05818749]
[1641797287035,2.54391101,142.74,142.72,29.05818749]
[1641797287236,2.54391101,142.74,142.69,32.6219]
[1641797287835,3.96949803,142.73,142.7,1.39389645]
[1641797288838,3.96949803,142.73,142.7,29.05868645]
[1641797289040,3.96949803,142.74,142.7,29.05868645]
[1641797289439,3.96949803,142.75,142.71,1.39389645]
[1641797290039,2.54389256,142.73,142.71,1.39389645]
[1641797290739,3.96949803,142.72,142.71,1.39389645]
[1641797291042,3.96949803,142.73,142.71,1.39389645]
[1641797292040,4.0,142.72,142.7,1.39389645]
[1641797292249,14.41814129,142.73,142.7,9.645e-05]
[1641797292442,14.41814129,142.73,142.67,14.83765128]
[1641797292443,4.0,142.71,142.67,14.83765128]
[1641797292641,9.6058626,142.71,142.66,14.83765128]
[1641797293644,3.97039936,142.7,142.66,14.83765128]
[1641797294143,6.51456563,142.7,142.67,1.38096811]
[1641797294344,40.09296563,142.7,142.67,1.38096811]
[1641797294546,3.97039936,142.69,142.65,7.803]
[1641797294946,3.97039936,142.69,142.66,1.38096811]
[1641797295346,3.97039936,142.69,142.66,3.78864978]
[1641797295946,3.97039936,142.69,142.67,1.38096811]
[1641797296748,3.97039936,142.69,142.66,1.38096811]
[1641797300653,3.97039936,142.69,142.65,1.38096811]
[1641797300854,3.97039936,142.69,142.65,29.04575811]
[1641797301254,3.97039936,142.69,142.66,1.38096811]
[1641797301453,3.97039936,142.69,142.66,9.92296811]
[1641797301653,3.97039936,142.69,142.67,1.38096811]
[1641797302153,3.97039936,142.69,142.66,8.542]
[1641797302652,3.97039936,142.69,142.67,1.10206615]
[1641797303553,3.97039936,142.69,142.66,1.10206615]
[1641797303753,3.97039936,142.69,142.65,27.66479]
[1641797304155,3.97039936,142.69,142.66,1.10207187]
[1641797306358,3.97039936,142.69,142.66,9.50107187]
[1641797306957,3.97039936,142.69,142.67,1.10207187]
[1641797307757,3.97039936,142.69,142.66,1.10207187]
[1641797312967,3.97039936,142.69,142.65,1.10207187]
[1641797314570,3.97039936,142.69,142.66,2.40570662]
[1641797315068,3.97039936,142.69,142.67,1.10207187]
[1641797318069,3.97039936,142.71,142.67,1.10207187]
[1641797318670,3.97039936,142.72,142.67,5.10207187]
[1641797319072,3.97039936,142.73,142.68,1.10207187]
[1641797319273,3.97039936,142.73,142.68,3.51060677]
[1641797319472,3.97039936,142.73,142.68,30.0733249]
[1641797319875,3.97039936,142.73,142.69,2.4085349]
[1641797320072,3.97039936,142.73,142.69,12.37460677]
[1641797320474,3.97039936,142.74,142.7,1.10207187]
[1641797325574,3.97039936,142.76,142.7,1.10207187]
[1641797326377,4.0,142.75,142.7,1.10207187]
[1641797326577,10.954,142.75,142.7,1.10207187]
[1641797326778,10.954,142.75,142.69,1.10207187]
[1641797327178,3.97039936,142.74,142.69,1.10207187]
[1641797327579,3.97039936,142.74,142.7,2.40405589]
[1641797327979,3.97039936,142.74,142.71,1.10207187]
[1641797329482,3.97039936,142.74,142.69,1.10207187]
[1641797330083,3.97039936,142.74,142.7,2.40311066]
[1641797330786,3.97039936,142.74,142.71,1.10207187]
[1641797331184,3.97039936,142.75,142.71,1.10207187]
[1641797331986,35.63518936,142.75,142.71,1.10207187]
[1641797332186,35.63518936,142.75,142.67,223.47304455]
[1641797332187,9.60460975,142.74,142.68,1.10207187]
[1641797332388,45.7649623,142.74,142.68,1.10207187]
[1641797332586,3.97039936,142.73,142.68,1.10207187]
[1641797337994,27.66479,142.72,142.68,1.10207187]
[1641797338294,3.97039936,142.71,142.68,1.10207187]
[1641797339096,3.97039936,142.73,142.68,1.10207187]
[1641797342498,2.54119507,142.72,142.68,1.10207187]
[1641797343101,3.97039936,142.71,142.68,1.10207187]
[1641797344399,3.97039936,142.71,142.69,2.40630761]
[1641797344599,3.97039936,142.73,142.69,11.38430761]
[1641797345000,3.97039936,142.75,142.7,1.10207187]
[1641797345299,3.97039936,142.75,142.7,3.50837948]
[1641797345903,3.97039936,142.75,142.71,1.10207187]
[1641797346101,3.97039936,142.75,142.71,3.50837948]
[1641797346703,3.97039936,142.75,142.71,1.10207187]
[1641797346903,3.97039936,142.75,142.72,1.10207187]
[1641797347103,3.97039936,142.75,142.72,9.10807187]
[1641797347303,3.97039936,142.75,142.72,8.006]
[1641797347805,3.97039936,142.75,142.73,1.10207187]
[1641797350611,3.97039936,142.75,142.71,1.10207187]
[1641797351012,7.97039936,142.75,142.71,1.10207187]
[1641797351211,15.96566017,142.75,142.71,1.10207187]
[1641797351611,3.97039936,142.74,142.68,14.83765128]
[1641797351811,6.51257444,142.74,142.67,27.66479]
[1641797352011,6.51257444,142.74,142.69,1.10077325]
[1641797352411,3.97039936,142.73,142.68,1.10077325]
[1641797352811,6.51257444,142.73,142.68,1.10077325]
[1641797353412,3.97039936,142.72,142.68,1.10077325]
[1641797354415,3.97039936,142.74,142.68,1.10077325]
[1641797355015,2.54182719,142.73,142.68,1.10077325]
[1641797355817,2.54182719,142.73,142.69,2.40671234]
[1641797356018,3.97039936,142.72,142.69,2.40671234]
[1641797356518,3.97039936,142.72,142.7,1.10077325]
[1641797357824,3.97039936,142.73,142.68,1.10077325]
[1641797358525,3.97039936,142.73,142.69,2.40690338]
[1641797359126,3.97039936,142.73,142.7,1.10077325]
[1641797359927,3.97039936,142.73,142.7,8.00377325]
[1641797360130,3.97039936,142.74,142.7,6.903]
[1641797360528,3.97039936,142.74,142.71,1.10077325]
[1641797362531,3.97039936,142.74,142.68,1.10077325]
[1641797362931,12.32539936,142.74,142.68,1.10077325]
[1641797363134,12.32539936,142.74,142.69,2.40700957]
[1641797363332,3.97039936,142.73,142.69,2.40700957]
[1641797364034,3.97039936,142.74,142.7,1.10077325]
[1641797365638,3.97039936,142.74,142.68,1.10077325]
[1641797366136,3.97039936,142.74,142.69,2.40695019]
[1641797366536,3.97039936,142.74,142.7,1.10077325]
[1641797366737,3.97039936,142.74,142.7,6.84677325]